{"text_format":"1","workbook":"xlsx","n_sheets":6,"sheets":["Requirement","Raw Data","Professional Fees","Date & Amount & Type & Name","Date & Amount & Type","Date & Amount"],"not_rendered":{"charts":0,"images":0,"macros":1,"external_links":0,"defined_names":0,"comments":0,"pivot_tables":0},"unopened":[],"bounds":{"document_bytes":16777216,"sheet_cells":100000,"rows_first":2000,"rows_last":500,"rows_between":2000,"halvings":0,"cell_chars":16384,"cell_head_chars":4096},"cells_cut":0,"cells_raw":0,"read":"whole","date_system":"1900"}

{"sheet":"Requirement","index":0,"n_rows":7,"n_cols":3,"rows_kept":7,"cut":false,"hidden":false,"merged":[]}
[]
[]
["Case Number","Situation","Action"]
[1,"If any rows (with different expense number) of both Expense Date (Column Q) and Line Amount (Column L) have the same value","Create a tab (Name: Date & Amount) and copy and paste the related rows to this tab"]
[2,"If any rows (with different expense number) of Expense Date (Column Q), Line Amount (Column L) and Expense Type (Column K) have the same value","Create a tab (Name: Date & Amount & Type) and copy and paste the related rows to this tab"]
[3,"If any rows (with different expense number) of Expense Date (Column Q), Line Amount (Column L), Expense Type (Column K) and Claimant Name (Column B) have the same value","Create a tab (Name: Date & Amount & Type & Name) and copy and paste the related rows to this tab"]
[4,"If Expense Type (Column K) contains PROF.FEE, and;\nIf any rows (with different expense number)of  Claimant Name (Column B) have the same value","Create a tab (Name: Professional Fees) and copy and paste the related rows to this tab"]

{"sheet":"Raw Data","index":1,"n_rows":99,"n_cols":47,"rows_kept":99,"cut":false,"hidden":false,"merged":[]}
["Expense Number","Claimant Name","Report Submitted Date","Expense Report Date","Purpose","Purpose","Status","Amount (HKD)","Currency","Line Number","Expense Type","Line Amount (HKD)","Receipt Amount (Before Tax)","Line Currency","Exchange Rate","Justification","Expense Date","Allocation Number","Allocation Amount","Expense Allocation","Employee (If not the claims)","Departure Location","Destination","Mode of Transportation","Purpose of Journey","Name of Guest Company","Most Senior Participant","Purpose of Entertainment","Cost Per Head","Cost Per Head (Before Tax)","Number of Participants","Name and Position of Participants","TAR Approved Number","Reason of Guest No. Diff","Reason of Other Related Expense","ABC Approval Reference Number","Additional Approver 1","Additional Approver 2","EAP Approver 3","Additional Approver 4","Additional Approver 5","Additional Approver - CEO","Additional Approver - AAE","HR Division 1","HR Division 2","HR Division 3","HR Division 4"]
[{"$f":"\"ENC\"&TEXT(QUOTIENT(ROW(),100),\"00\")&\"001\"","v":"ENC00001"},{"$f":"\"A, BC  (Tom)_\"&A2","v":"A, BC  (Tom)_ENC00001"},null,null,null,null,null,null,null,null,"Oversea Travel - Taxi",{"$f":"100+ROW()","v":102},null,null,null,null,"2024/01/06"]
[{"$f":"\"ENC\"&TEXT(QUOTIENT(ROW(),100),\"00\")&\"001\"","v":"ENC00001"},{"$f":"\"A, BC  (Tom)_\"&A3","v":"A, BC  (Tom)_ENC00001"},null,null,null,null,null,null,null,null,"Oversea Travel - Taxi",{"$f":"L2","v":102},null,null,null,null,"2024/01/06"]
[{"$f":"\"ENC\"&TEXT(QUOTIENT(ROW(),100),\"00\")&\"003\"","v":"ENC00003"},{"$f":"\"A, KY  (Jack)_\"&A4","v":"A, KY  (Jack)_ENC00003"},null,null,null,null,null,null,null,null,"Oversea Travel - Entertainment",{"$f":"1000+ROW()","v":1004},null,null,null,null,"2024/01/07"]
[{"$f":"\"ENC\"&TEXT(QUOTIENT(ROW(),100),\"00\")&\"003\"","v":"ENC00003"},{"$f":"\"A, KY  (Jack)_\"&A5","v":"A, KY  (Jack)_ENC00003"},null,null,null,null,null,null,null,null,"Oversea Travel - Entertainment",{"$f":"L4","v":1004},null,null,null,null,"2024/01/07"]
[{"$f":"\"ENC\"&TEXT(QUOTIENT(ROW(),100),\"00\")&\"005\"","v":"ENC00005"},{"$f":"\"D, AB (Max)_\"&A6","v":"D, AB (Max)_ENC00005"},null,null,null,null,null,null,null,null,"Oversea Travel - Entertainment",500,null,null,null,null,"2024/01/08"]
[{"$f":"\"ENC\"&TEXT(QUOTIENT(ROW(),100),\"00\")&\"006\"","v":"ENC00006"},{"$f":"\"K, LB (Dave)_\"&A7","v":"K, LB (Dave)_ENC00006"},null,null,null,null,null,null,null,null,"Meal",{"$f":"800+ROW()","v":807},null,null,null,null,"2024/07/09"]
[{"$f":"\"ENC\"&TEXT(QUOTIENT(ROW(),100),\"00\")&\"007\"","v":"ENC00007"},{"$f":"\"K, LB (Dave)_\"&A7","v":"K, LB (Dave)_ENC00006"},null,null,null,null,null,null,null,null,"Meal",{"$f":"L98","v":807},null,null,null,null,"2024/07/09"]
[{"$f":"\"ENC\"&TEXT(QUOTIENT(ROW(),100),\"00\")&\"012\"","v":"ENC00012"},{"$f":"\"I, OP (Ren)_\"&A9","v":"I, OP (Ren)_ENC00012"},null,null,null,null,null,null,null,null,"PROF.FEE",500000,null,null,null,null,"2024/05/13"]
[{"$f":"\"ENC\"&TEXT(QUOTIENT(ROW(),100),\"00\")&\"013\"","v":"ENC00013"},{"$f":"\"O, PD (Ian)_\"&A10","v":"O, PD (Ian)_ENC00013"},null,null,null,null,null,null,null,null,"PROF.FEE",1000,null,null,null,null,"2024/09/13"]
[{"$f":"\"ENC\"&TEXT(QUOTIENT(ROW(),100),\"00\")&\"015\"","v":"ENC00015"},{"$f":"\"I, OP (Ren)_\"&A11","v":"I, OP (Ren)_ENC00015"},null,null,null,null,null,null,null,null,"PROF.FEE",500000,null,null,null,null,"2024/05/13"]
["ENC00001",{"$f":"\"A, BC  (Tom)_\"&A12","v":"A, BC  (Tom)_ENC00001"},null,null,null,null,null,null,null,null,"Oversea Travel - Taxi",102,null,null,null,null,"2024/01/06"]
["ENC00002",{"$f":"\"B, YU (Ken)_\"&A13","v":"B, YU (Ken)_ENC00002"},null,null,null,null,null,null,null,null,"Oversea Travel - Bus",102,null,null,null,null,"2024/01/06"]
["ENC00001",{"$f":"\"A, BC  (Tom)_\"&A14","v":"A, BC  (Tom)_ENC00001"},null,null,null,null,null,null,null,null,"Oversea Travel - Taxi",102,null,null,null,null,"2024/01/06"]
["ENC00003",{"$f":"\"A, KY  (Jack)_\"&A15","v":"A, KY  (Jack)_ENC00003"},null,null,null,null,null,null,null,null,"Oversea Travel - Entertainment",1000,null,null,null,null,"2024/01/07"]
["ENC00004",{"$f":"\"C, AD (Mary)_\"&A16","v":"C, AD (Mary)_ENC00004"},null,null,null,null,null,null,null,null,"Oversea Travel - Entertainment",1000,null,null,null,null,"2024/01/07"]
["ENC00003",{"$f":"\"A, KY  (Jack)_\"&A17","v":"A, KY  (Jack)_ENC00003"},null,null,null,null,null,null,null,null,"Oversea Travel - Entertainment",1000,null,null,null,null,"2024/01/07"]
["ENC00005",{"$f":"\"D, AB (Max)_\"&A18","v":"D, AB (Max)_ENC00005"},null,null,null,null,null,null,null,null,"Oversea Travel - Entertainment",500,null,null,null,null,"2024/01/08"]
["ENC00006",{"$f":"\"K, LB (Dave)_\"&A19","v":"K, LB (Dave)_ENC00006"},null,null,null,null,null,null,null,null,"Meal",800,null,null,null,null,"2024/07/09"]
["ENC00007",{"$f":"\"K, LB (Dave)_\"&A19","v":"K, LB (Dave)_ENC00006"},null,null,null,null,null,null,null,null,"Meal",800,null,null,null,null,"2024/07/09"]
["ENC00007",{"$f":"\"K, LB (Dave)_\"&A19","v":"K, LB (Dave)_ENC00006"},null,null,null,null,null,null,null,null,"Meal",800,null,null,null,null,"2024/07/09"]
["ENC00012",{"$f":"\"I, OP (Ren)_\"&A22","v":"I, OP (Ren)_ENC00012"},null,null,null,null,null,null,null,null,"PROF.FEE",500000,null,null,null,null,"2024/05/13"]
["ENC00013",{"$f":"\"O, PD (Ian)_\"&A23","v":"O, PD (Ian)_ENC00013"},null,null,null,null,null,null,null,null,"PROF.FEE",1000,null,null,null,null,"2024/09/13"]
["ENC00014",{"$f":"\"I, OP (Ren)_\"&A22","v":"I, OP (Ren)_ENC00012"},null,null,null,null,null,null,null,null,"PROF.FEE",8000,null,null,null,null,"2024/10/29"]
["ENC00001",{"$f":"\"A, BC  (Tom)_\"&A25","v":"A, BC  (Tom)_ENC00001"},null,null,null,null,null,null,null,null,"Oversea Travel - Taxi",102,null,null,null,null,"2024/01/06"]
["ENC00002",{"$f":"\"B, YU (Ken)_\"&A26","v":"B, YU (Ken)_ENC00002"},null,null,null,null,null,null,null,null,"Oversea Travel - Bus",102,null,null,null,null,"2024/01/06"]
["ENC00001",{"$f":"\"A, BC  (Tom)_\"&A27","v":"A, BC  (Tom)_ENC00001"},null,null,null,null,null,null,null,null,"Oversea Travel - Taxi",102,null,null,null,null,"2024/01/06"]
["ENC00003",{"$f":"\"A, KY  (Jack)_\"&A28","v":"A, KY  (Jack)_ENC00003"},null,null,null,null,null,null,null,null,"Oversea Travel - Entertainment",1000,null,null,null,null,"2024/01/07"]
["ENC00004",{"$f":"\"C, AD (Mary)_\"&A29","v":"C, AD (Mary)_ENC00004"},null,null,null,null,null,null,null,null,"Oversea Travel - Entertainment",1000,null,null,null,null,"2024/01/07"]
["ENC00003",{"$f":"\"A, KY  (Jack)_\"&A30","v":"A, KY  (Jack)_ENC00003"},null,null,null,null,null,null,null,null,"Oversea Travel - Entertainment",1000,null,null,null,null,"2024/01/07"]
["ENC00005",{"$f":"\"D, AB (Max)_\"&A31","v":"D, AB (Max)_ENC00005"},null,null,null,null,null,null,null,null,"Oversea Travel - Entertainment",500,null,null,null,null,"2024/01/08"]
["ENC00006",{"$f":"\"K, LB (Dave)_\"&A32","v":"K, LB (Dave)_ENC00006"},null,null,null,null,null,null,null,null,"Meal",800,null,null,null,null,"2024/07/09"]
["ENC00007",{"$f":"\"K, LB (Dave)_\"&A32","v":"K, LB (Dave)_ENC00006"},null,null,null,null,null,null,null,null,"Meal",800,null,null,null,null,"2024/07/09"]
["ENC00007",{"$f":"\"K, LB (Dave)_\"&A32","v":"K, LB (Dave)_ENC00006"},null,null,null,null,null,null,null,null,"Meal",800,null,null,null,null,"2024/07/09"]
["ENC00012",{"$f":"\"I, OP (Ren)_\"&A35","v":"I, OP (Ren)_ENC00012"},null,null,null,null,null,null,null,null,"PROF.FEE",500000,null,null,null,null,"2024/05/13"]
["ENC00013",{"$f":"\"O, PD (Ian)_\"&A36","v":"O, PD (Ian)_ENC00013"},null,null,null,null,null,null,null,null,"PROF.FEE",1000,null,null,null,null,"2024/09/13"]
["ENC00014",{"$f":"\"I, OP (Ren)_\"&A35","v":"I, OP (Ren)_ENC00012"},null,null,null,null,null,null,null,null,"PROF.FEE",8000,null,null,null,null,"2024/10/29"]
["ENC00001",{"$f":"\"A, BC  (Tom)_\"&A38","v":"A, BC  (Tom)_ENC00001"},null,null,null,null,null,null,null,null,"Oversea Travel - Taxi",102,null,null,null,null,"2024/01/06"]
["ENC00002",{"$f":"\"B, YU (Ken)_\"&A39","v":"B, YU (Ken)_ENC00002"},null,null,null,null,null,null,null,null,"Oversea Travel - Bus",102,null,null,null,null,"2024/01/06"]
["ENC00001",{"$f":"\"A, BC  (Tom)_\"&A40","v":"A, BC  (Tom)_ENC00001"},null,null,null,null,null,null,null,null,"Oversea Travel - Taxi",102,null,null,null,null,"2024/01/06"]
["ENC00003",{"$f":"\"A, KY  (Jack)_\"&A41","v":"A, KY  (Jack)_ENC00003"},null,null,null,null,null,null,null,null,"Oversea Travel - Entertainment",1000,null,null,null,null,"2024/01/07"]
["ENC00004",{"$f":"\"C, AD (Mary)_\"&A42","v":"C, AD (Mary)_ENC00004"},null,null,null,null,null,null,null,null,"Oversea Travel - Entertainment",1000,null,null,null,null,"2024/01/07"]
["ENC00003",{"$f":"\"A, KY  (Jack)_\"&A43","v":"A, KY  (Jack)_ENC00003"},null,null,null,null,null,null,null,null,"Oversea Travel - Entertainment",1000,null,null,null,null,"2024/01/07"]
["ENC00005",{"$f":"\"D, AB (Max)_\"&A44","v":"D, AB (Max)_ENC00005"},null,null,null,null,null,null,null,null,"Oversea Travel - Entertainment",500,null,null,null,null,"2024/01/08"]
["ENC00006",{"$f":"\"K, LB (Dave)_\"&A45","v":"K, LB (Dave)_ENC00006"},null,null,null,null,null,null,null,null,"Meal",800,null,null,null,null,"2024/07/09"]
["ENC00007",{"$f":"\"K, LB (Dave)_\"&A45","v":"K, LB (Dave)_ENC00006"},null,null,null,null,null,null,null,null,"Meal",800,null,null,null,null,"2024/07/09"]
["ENC00007",{"$f":"\"K, LB (Dave)_\"&A45","v":"K, LB (Dave)_ENC00006"},null,null,null,null,null,null,null,null,"Meal",800,null,null,null,null,"2024/07/09"]
["ENC00012",{"$f":"\"I, OP (Ren)_\"&A48","v":"I, OP (Ren)_ENC00012"},null,null,null,null,null,null,null,null,"PROF.FEE",500000,null,null,null,null,"2024/05/13"]
["ENC00013",{"$f":"\"O, PD (Ian)_\"&A49","v":"O, PD (Ian)_ENC00013"},null,null,null,null,null,null,null,null,"PROF.FEE",1000,null,null,null,null,"2024/09/13"]
["ENC00014",{"$f":"\"I, OP (Ren)_\"&A48","v":"I, OP (Ren)_ENC00012"},null,null,null,null,null,null,null,null,"PROF.FEE",8000,null,null,null,null,"2024/10/29"]
["ENC00001",{"$f":"\"A, BC  (Tom)_\"&A51","v":"A, BC  (Tom)_ENC00001"},null,null,null,null,null,null,null,null,"Oversea Travel - Taxi",102,null,null,null,null,"2024/01/06"]
["ENC00002",{"$f":"\"B, YU (Ken)_\"&A52","v":"B, YU (Ken)_ENC00002"},null,null,null,null,null,null,null,null,"Oversea Travel - Bus",102,null,null,null,null,"2024/01/06"]
["ENC00001",{"$f":"\"A, BC  (Tom)_\"&A53","v":"A, BC  (Tom)_ENC00001"},null,null,null,null,null,null,null,null,"Oversea Travel - Taxi",102,null,null,null,null,"2024/01/06"]
["ENC00003",{"$f":"\"A, KY  (Jack)_\"&A54","v":"A, KY  (Jack)_ENC00003"},null,null,null,null,null,null,null,null,"Oversea Travel - Entertainment",1000,null,null,null,null,"2024/01/07"]
["ENC00004",{"$f":"\"C, AD (Mary)_\"&A55","v":"C, AD (Mary)_ENC00004"},null,null,null,null,null,null,null,null,"Oversea Travel - Entertainment",1000,null,null,null,null,"2024/01/07"]
["ENC00003",{"$f":"\"A, KY  (Jack)_\"&A56","v":"A, KY  (Jack)_ENC00003"},null,null,null,null,null,null,null,null,"Oversea Travel - Entertainment",1000,null,null,null,null,"2024/01/07"]
["ENC00005",{"$f":"\"D, AB (Max)_\"&A57","v":"D, AB (Max)_ENC00005"},null,null,null,null,null,null,null,null,"Oversea Travel - Entertainment",500,null,null,null,null,"2024/01/08"]
["ENC00006",{"$f":"\"K, LB (Dave)_\"&A58","v":"K, LB (Dave)_ENC00006"},null,null,null,null,null,null,null,null,"Meal",800,null,null,null,null,"2024/07/09"]
["ENC00007",{"$f":"\"K, LB (Dave)_\"&A58","v":"K, LB (Dave)_ENC00006"},null,null,null,null,null,null,null,null,"Meal",800,null,null,null,null,"2024/07/09"]
["ENC00007",{"$f":"\"K, LB (Dave)_\"&A58","v":"K, LB (Dave)_ENC00006"},null,null,null,null,null,null,null,null,"Meal",800,null,null,null,null,"2024/07/09"]
["ENC00012",{"$f":"\"I, OP (Ren)_\"&A61","v":"I, OP (Ren)_ENC00012"},null,null,null,null,null,null,null,null,"PROF.FEE",500000,null,null,null,null,"2024/05/13"]
["ENC00013",{"$f":"\"O, PD (Ian)_\"&A62","v":"O, PD (Ian)_ENC00013"},null,null,null,null,null,null,null,null,"PROF.FEE",1000,null,null,null,null,"2024/09/13"]
["ENC00014",{"$f":"\"I, OP (Ren)_\"&A61","v":"I, OP (Ren)_ENC00012"},null,null,null,null,null,null,null,null,"PROF.FEE",8000,null,null,null,null,"2024/10/29"]
["ENC00001",{"$f":"\"A, BC  (Tom)_\"&A64","v":"A, BC  (Tom)_ENC00001"},null,null,null,null,null,null,null,null,"Oversea Travel - Taxi",102,null,null,null,null,"2024/01/06"]
["ENC00002",{"$f":"\"B, YU (Ken)_\"&A65","v":"B, YU (Ken)_ENC00002"},null,null,null,null,null,null,null,null,"Oversea Travel - Bus",102,null,null,null,null,"2024/01/06"]
["ENC00001",{"$f":"\"A, BC  (Tom)_\"&A66","v":"A, BC  (Tom)_ENC00001"},null,null,null,null,null,null,null,null,"Oversea Travel - Taxi",102,null,null,null,null,"2024/01/06"]
["ENC00003",{"$f":"\"A, KY  (Jack)_\"&A67","v":"A, KY  (Jack)_ENC00003"},null,null,null,null,null,null,null,null,"Oversea Travel - Entertainment",1000,null,null,null,null,"2024/01/07"]
["ENC00004",{"$f":"\"C, AD (Mary)_\"&A68","v":"C, AD (Mary)_ENC00004"},null,null,null,null,null,null,null,null,"Oversea Travel - Entertainment",1000,null,null,null,null,"2024/01/07"]
["ENC00003",{"$f":"\"A, KY  (Jack)_\"&A69","v":"A, KY  (Jack)_ENC00003"},null,null,null,null,null,null,null,null,"Oversea Travel - Entertainment",1000,null,null,null,null,"2024/01/07"]
["ENC00005",{"$f":"\"D, AB (Max)_\"&A70","v":"D, AB (Max)_ENC00005"},null,null,null,null,null,null,null,null,"Oversea Travel - Entertainment",500,null,null,null,null,"2024/01/08"]
["ENC00006",{"$f":"\"K, LB (Dave)_\"&A71","v":"K, LB (Dave)_ENC00006"},null,null,null,null,null,null,null,null,"Meal",800,null,null,null,null,"2024/07/09"]
["ENC00007",{"$f":"\"K, LB (Dave)_\"&A71","v":"K, LB (Dave)_ENC00006"},null,null,null,null,null,null,null,null,"Meal",800,null,null,null,null,"2024/07/09"]
["ENC00007",{"$f":"\"K, LB (Dave)_\"&A71","v":"K, LB (Dave)_ENC00006"},null,null,null,null,null,null,null,null,"Meal",800,null,null,null,null,"2024/07/09"]
["ENC00012",{"$f":"\"I, OP (Ren)_\"&A74","v":"I, OP (Ren)_ENC00012"},null,null,null,null,null,null,null,null,"PROF.FEE",500000,null,null,null,null,"2024/05/13"]
["ENC00013",{"$f":"\"O, PD (Ian)_\"&A75","v":"O, PD (Ian)_ENC00013"},null,null,null,null,null,null,null,null,"PROF.FEE",1000,null,null,null,null,"2024/09/13"]
["ENC00014",{"$f":"\"I, OP (Ren)_\"&A74","v":"I, OP (Ren)_ENC00012"},null,null,null,null,null,null,null,null,"PROF.FEE",8000,null,null,null,null,"2024/10/29"]
["ENC00001",{"$f":"\"A, BC  (Tom)_\"&A77","v":"A, BC  (Tom)_ENC00001"},null,null,null,null,null,null,null,null,"Oversea Travel - Taxi",102,null,null,null,null,"2024/01/06"]
["ENC00002",{"$f":"\"B, YU (Ken)_\"&A78","v":"B, YU (Ken)_ENC00002"},null,null,null,null,null,null,null,null,"Oversea Travel - Bus",102,null,null,null,null,"2024/01/06"]
["ENC00001",{"$f":"\"A, BC  (Tom)_\"&A79","v":"A, BC  (Tom)_ENC00001"},null,null,null,null,null,null,null,null,"Oversea Travel - Taxi",102,null,null,null,null,"2024/01/06"]
["ENC00003",{"$f":"\"A, KY  (Jack)_\"&A80","v":"A, KY  (Jack)_ENC00003"},null,null,null,null,null,null,null,null,"Oversea Travel - Entertainment",1000,null,null,null,null,"2024/01/07"]
["ENC00004",{"$f":"\"C, AD (Mary)_\"&A81","v":"C, AD (Mary)_ENC00004"},null,null,null,null,null,null,null,null,"Oversea Travel - Entertainment",1000,null,null,null,null,"2024/01/07"]
["ENC00003",{"$f":"\"A, KY  (Jack)_\"&A82","v":"A, KY  (Jack)_ENC00003"},null,null,null,null,null,null,null,null,"Oversea Travel - Entertainment",1000,null,null,null,null,"2024/01/07"]
["ENC00005",{"$f":"\"D, AB (Max)_\"&A83","v":"D, AB (Max)_ENC00005"},null,null,null,null,null,null,null,null,"Oversea Travel - Entertainment",500,null,null,null,null,"2024/01/08"]
["ENC00006",{"$f":"\"K, LB (Dave)_\"&A84","v":"K, LB (Dave)_ENC00006"},null,null,null,null,null,null,null,null,"Meal",800,null,null,null,null,"2024/07/09"]
["ENC00007",{"$f":"\"K, LB (Dave)_\"&A84","v":"K, LB (Dave)_ENC00006"},null,null,null,null,null,null,null,null,"Meal",800,null,null,null,null,"2024/07/09"]
["ENC00007",{"$f":"\"K, LB (Dave)_\"&A84","v":"K, LB (Dave)_ENC00006"},null,null,null,null,null,null,null,null,"Meal",800,null,null,null,null,"2024/07/09"]
["ENC00012",{"$f":"\"I, OP (Ren)_\"&A87","v":"I, OP (Ren)_ENC00012"},null,null,null,null,null,null,null,null,"PROF.FEE",500000,null,null,null,null,"2024/05/13"]
["ENC00013",{"$f":"\"O, PD (Ian)_\"&A88","v":"O, PD (Ian)_ENC00013"},null,null,null,null,null,null,null,null,"PROF.FEE",1000,null,null,null,null,"2024/09/13"]
["ENC00014",{"$f":"\"I, OP (Ren)_\"&A87","v":"I, OP (Ren)_ENC00012"},null,null,null,null,null,null,null,null,"PROF.FEE",8000,null,null,null,null,"2024/10/29"]
["ENC00001",{"$f":"\"A, BC  (Tom)_\"&A90","v":"A, BC  (Tom)_ENC00001"},null,null,null,null,null,null,null,null,"Oversea Travel - Taxi",102,null,null,null,null,"2024/01/06"]
["ENC00002",{"$f":"\"B, YU (Ken)_\"&A91","v":"B, YU (Ken)_ENC00002"},null,null,null,null,null,null,null,null,"Oversea Travel - Bus",102,null,null,null,null,"2024/01/06"]
["ENC00001",{"$f":"\"A, BC  (Tom)_\"&A92","v":"A, BC  (Tom)_ENC00001"},null,null,null,null,null,null,null,null,"Oversea Travel - Taxi",102,null,null,null,null,"2024/01/06"]
["ENC00003",{"$f":"\"A, KY  (Jack)_\"&A93","v":"A, KY  (Jack)_ENC00003"},null,null,null,null,null,null,null,null,"Oversea Travel - Entertainment",1000,null,null,null,null,"2024/01/07"]
["ENC00004",{"$f":"\"C, AD (Mary)_\"&A94","v":"C, AD (Mary)_ENC00004"},null,null,null,null,null,null,null,null,"Oversea Travel - Entertainment",1000,null,null,null,null,"2024/01/07"]
["ENC00003",{"$f":"\"A, KY  (Jack)_\"&A95","v":"A, KY  (Jack)_ENC00003"},null,null,null,null,null,null,null,null,"Oversea Travel - Entertainment",1000,null,null,null,null,"2024/01/07"]
[{"$f":"\"ENC\"&TEXT(QUOTIENT(ROW(),100),\"00\")&\"002\"","v":"ENC00002"},{"$f":"\"B, YU (Ken)_\"&A96","v":"B, YU (Ken)_ENC00002"},null,null,null,null,null,null,null,null,"Oversea Travel - Bus",{"$f":"L94","v":1000},null,null,null,null,"2024/01/06"]
[{"$f":"\"ENC\"&TEXT(QUOTIENT(ROW(),100),\"00\")&\"004\"","v":"ENC00004"},{"$f":"\"C, AD (Mary)_\"&A97","v":"C, AD (Mary)_ENC00004"},null,null,null,null,null,null,null,null,"Oversea Travel - Entertainment",{"$f":"L96","v":1000},null,null,null,null,"2024/01/07"]
[{"$f":"\"ENC\"&TEXT(QUOTIENT(ROW(),100),\"00\")&\"007\"","v":"ENC00007"},{"$f":"\"K, LB (Dave)_\"&A7","v":"K, LB (Dave)_ENC00006"},null,null,null,null,null,null,null,null,"Meal",{"$f":"L7","v":807},null,null,null,null,"2024/07/09"]
[{"$f":"\"ENC\"&TEXT(QUOTIENT(ROW(),100),\"00\")&\"014\"","v":"ENC00014"},{"$f":"\"I, OP (Ren)_\"&A9","v":"I, OP (Ren)_ENC00012"},null,null,null,null,null,null,null,null,"PROF.FEE",8000,null,null,null,null,"2024/10/29"]

{"sheet":"Professional Fees","index":2,"n_rows":3,"n_cols":47,"rows_kept":3,"cut":false,"hidden":false,"merged":[]}
["Expense Number","Claimant Name","Report Submitted Date","Expense Report Date","Purpose","Purpose","Status","Amount (HKD)","Currency","Line Number","Expense Type","Line Amount (HKD)","Receipt Amount (Before Tax)","Line Currency","Exchange Rate","Justification","Expense Date","Allocation Number","Allocation Amount","Expense Allocation","Employee (If not the claims)","Departure Location","Destination","Mode of Transportation","Purpose of Journey","Name of Guest Company","Most Senior Participant","Purpose of Entertainment","Cost Per Head","Cost Per Head (Before Tax)","Number of Participants","Name and Position of Participants","TAR Approved Number","Reason of Guest No. Diff","Reason of Other Related Expense","ABC Approval Reference Number","Additional Approver 1","Additional Approver 2","EAP Approver 3","Additional Approver 4","Additional Approver 5","Additional Approver - CEO","Additional Approver - AAE","HR Division 1","HR Division 2","HR Division 3","HR Division 4"]
["ENC00012","I, OP (Ren)_ENC00012",null,null,null,null,null,null,null,null,"PROF.FEE",500000,null,null,null,null,"2024/05/13"]
["ENC00014","I, OP (Ren)_ENC00012",null,null,null,null,null,null,null,null,"PROF.FEE",8000,null,null,null,null,"2024/10/29"]

{"sheet":"Date & Amount & Type & Name","index":3,"n_rows":5,"n_cols":47,"rows_kept":5,"cut":false,"hidden":false,"merged":[]}
["Expense Number","Claimant Name","Report Submitted Date","Expense Report Date","Purpose","Purpose","Status","Amount (HKD)","Currency","Line Number","Expense Type","Line Amount (HKD)","Receipt Amount (Before Tax)","Line Currency","Exchange Rate","Justification","Expense Date","Allocation Number","Allocation Amount","Expense Allocation","Employee (If not the claims)","Departure Location","Destination","Mode of Transportation","Purpose of Journey","Name of Guest Company","Most Senior Participant","Purpose of Entertainment","Cost Per Head","Cost Per Head (Before Tax)","Number of Participants","Name and Position of Participants","TAR Approved Number","Reason of Guest No. Diff","Reason of Other Related Expense","ABC Approval Reference Number","Additional Approver 1","Additional Approver 2","EAP Approver 3","Additional Approver 4","Additional Approver 5","Additional Approver - CEO","Additional Approver - AAE","HR Division 1","HR Division 2","HR Division 3","HR Division 4"]
["ENC00006","K, LB (Dave)_ENC00006",null,null,null,null,null,null,null,null,"Meal",807,null,null,null,null,"2024/07/09"]
["ENC00007","K, LB (Dave)_ENC00006",null,null,null,null,null,null,null,null,"Meal",807,null,null,null,null,"2024/07/09"]
["ENC00006","K, LB (Dave)_ENC00006",null,null,null,null,null,null,null,null,"Meal",800,null,null,null,null,"2024/07/09"]
["ENC00007","K, LB (Dave)_ENC00006",null,null,null,null,null,null,null,null,"Meal",800,null,null,null,null,"2024/07/09"]

{"sheet":"Date & Amount & Type","index":4,"n_rows":3,"n_cols":47,"rows_kept":3,"cut":false,"hidden":false,"merged":[]}
["Expense Number","Claimant Name","Report Submitted Date","Expense Report Date","Purpose","Purpose","Status","Amount (HKD)","Currency","Line Number","Expense Type","Line Amount (HKD)","Receipt Amount (Before Tax)","Line Currency","Exchange Rate","Justification","Expense Date","Allocation Number","Allocation Amount","Expense Allocation","Employee (If not the claims)","Departure Location","Destination","Mode of Transportation","Purpose of Journey","Name of Guest Company","Most Senior Participant","Purpose of Entertainment","Cost Per Head","Cost Per Head (Before Tax)","Number of Participants","Name and Position of Participants","TAR Approved Number","Reason of Guest No. Diff","Reason of Other Related Expense","ABC Approval Reference Number","Additional Approver 1","Additional Approver 2","EAP Approver 3","Additional Approver 4","Additional Approver 5","Additional Approver - CEO","Additional Approver - AAE","HR Division 1","HR Division 2","HR Division 3","HR Division 4"]
["ENC00003","A, KY  (Jack)_ENC00003",null,null,null,null,null,null,null,null,"Oversea Travel - Entertainment",1000,null,null,null,null,"2024/01/07"]
["ENC00004","C, AD (Mary)_ENC00004",null,null,null,null,null,null,null,null,"Oversea Travel - Entertainment",1000,null,null,null,null,"2024/01/07"]

{"sheet":"Date & Amount","index":5,"n_rows":3,"n_cols":47,"rows_kept":3,"cut":false,"hidden":false,"merged":[]}
["Expense Number","Claimant Name","Report Submitted Date","Expense Report Date","Purpose","Purpose","Status","Amount (HKD)","Currency","Line Number","Expense Type","Line Amount (HKD)","Receipt Amount (Before Tax)","Line Currency","Exchange Rate","Justification","Expense Date","Allocation Number","Allocation Amount","Expense Allocation","Employee (If not the claims)","Departure Location","Destination","Mode of Transportation","Purpose of Journey","Name of Guest Company","Most Senior Participant","Purpose of Entertainment","Cost Per Head","Cost Per Head (Before Tax)","Number of Participants","Name and Position of Participants","TAR Approved Number","Reason of Guest No. Diff","Reason of Other Related Expense","ABC Approval Reference Number","Additional Approver 1","Additional Approver 2","EAP Approver 3","Additional Approver 4","Additional Approver 5","Additional Approver - CEO","Additional Approver - AAE","HR Division 1","HR Division 2","HR Division 3","HR Division 4"]
["ENC00001","A, BC  (Tom)_ENC00001",null,null,null,null,null,null,null,null,"Oversea Travel - Taxi",102,null,null,null,null,"2024/01/06"]
["ENC00002","B, YU (Ken)_ENC00002",null,null,null,null,null,null,null,null,"Oversea Travel - Bus",102,null,null,null,null,"2024/01/06"]